[Event "TUR-chT Superleague 2018"]
[Site "Ankara"]
[Date "2018.07.25"]
[Round "1"]
[White "Mamedjarova, Zeinab"]
[Black "Mammadzada, Gunay"]
[Result "0-1"]
[ECO "A06"]
[WhiteElo "2345"]
[BlackElo "2426"]
[Annotator "NA"]
[PlyCount "60"]
[EventDate "2018.07.25"]
[EventType "team-tourn"]
[EventCountry "TUR"]
[SourceTitle "playchess.com"]
[Source "ChessBase"]
[SourceQuality "1"]
[TimeControl "40/5400+30:1800+30"]

1. Nf3 {[%emt 0:00:30]} d5 {[%emt 0:01:30]} 2. b3 {[%emt 0:00:00]} c5 {[%emt 0:00:30]} 3. Bb2 {[%emt 0:00:00]} f6 {[%emt 0:06:30]} 4. e3 {[%emt 0:02:30]} e5 {[%emt 0:01:30]} 5. d4 {[%emt 0:13:30]} cxd4 {[%emt 0:08:30]} 6. exd4 {[%emt 0:00:00]} e4 {[%emt 0:00:30]} 7. Nfd2 {[%emt 0:03:00]} f5 {[%emt 0:05:30]} 8. c4 {[%emt 0:01:30]} Nf6 {[%emt 0:01:30]} 9. cxd5 {[%emt 0:02:30]} Nbd7 {[%emt 0:08:30]} 10. Nc3 {[%emt 0:08:30]} Nb6 {[%emt 0:02:30]} 11. Bb5+ {[%emt 0:01:30]} Bd7 {[%emt 0:02:30]} 12. Bc4 {[%emt 0:00:30]} Bd6 {[%emt 0:05:30]} 13. Qe2 {[%emt 0:05:30]} O-O {[%emt 0:03:30]} 14. O-O-O {[%emt 0:01:30]} Re8 {[%emt 0:04:30]} 15. Kb1 {[%emt 0:07:30]} a6 {[%emt 0:04:30]} 16. f3 {[%emt 0:05:30]} e3 {[%emt 0:05:30]} 17. Nf1 {[%emt 0:00:30]} Bb4 {[%emt 0:01:30]} 18. g3 {[%emt 0:20:30]} Bxc3 {[%emt 0:01:30]} 19. Bxc3 {[%emt 0:01:30]} Nbxd5 {[%emt 0:03:30]} 20. Bb2 {[%emt 0:06:08]} b5 {[%emt 0:01:30]} 21. Bd3 {[%emt 0:00:39]} Rc8 {[%emt 0:01:30]} 22. h4 {[%emt 0:06:59]} Qe7 {[%emt 0:04:30]} 23. Rh2 {[%emt 0:00:41]} a5 {[%emt 0:03:30]} 24. Qe1 {[%emt 0:00:39]} a4 {[%emt 0:00:30]} 25. Re2 {[%emt 0:02:57]} a3 {[%emt 0:02:00]} 26. Ba1 {[%emt 0:01:24]} f4 {[%emt 0:01:12]} 27. gxf4 {[%emt 0:00:55]} Nxf4 {[%emt 0:00:38]} 28. Bc2 {[%emt 0:04:48]} Nxe2 {[%emt 0:00:44]} 29. Qxe2 {[%emt 0:00:02]} Rxc2 {[%emt 0:04:26]} 30. Kxc2 {[%emt 0:02:30]} Rc8+ {[%emt 0:01:09]} 0-1

[Event "TUR-chT Superleague 2018"]
[Site "Ankara"]
[Date "2018.07.25"]
[Round "1"]
[White "Ozturk, Kubra"]
[Black "Nechaeva, Marina"]
[Result "1/2-1/2"]
[ECO "E94"]
[WhiteElo "2330"]
[BlackElo "2410"]
[Annotator "NA"]
[PlyCount "106"]
[EventDate "2018.07.25"]
[EventType "team-tourn"]
[EventCountry "TUR"]
[SourceTitle "playchess.com"]
[Source "ChessBase"]
[SourceQuality "1"]
[TimeControl "40/5400+30:1800+30"]

1. d4 {[%emt 0:00:30]} Nf6 {[%emt 0:00:30]} 2. Nf3 {[%emt 0:00:30]} g6 {[%emt 0:00:30]} 3. c4 {[%emt 0:00:30]} Bg7 {[%emt 0:00:30]} 4. Nc3 {[%emt 0:00:00]} O-O {[%emt 0:00:00]} 5. e4 {[%emt 0:00:00]} d6 {[%emt 0:00:00]} 6. Be2 {[%emt 0:00:30]} e5 {[%emt 0:00:00]} 7. O-O {[%emt 0:02:30]} Nbd7 {[%emt 0:00:00]} 8. Be3 {[%emt 0:05:30]} Re8 {[%emt 0:00:30]} 9. Qc2 {[%emt 0:06:30]} exd4 {[%emt 0:10:30]} 10. Nxd4 {[%emt 0:02:30]} Nc5 {[%emt 0:00:30]} 11. f3 {[%emt 0:01:30]} a5 {[%emt 0:00:00]} 12. Rad1 {[%emt 0:01:30]} Nfd7 {[%emt 0:02:00]} 13. Qd2 {[%emt 0:06:30]} a4 {[%emt 0:07:30]} 14. Ndb5 {[%emt 0:04:30]} b6 {[%emt 0:13:30]} 15. Bg5 {[%emt 0:12:30]} Bf6 {[%emt 0:01:30]} 16. Bxf6 {[%emt 0:10:30]} Nxf6 {[%emt 0:00:30]} 17. Qg5 {[%emt 0:03:30]} Ne6 {[%emt 0:11:30]} 18. Qh4 {[%emt 0:02:30]} Qe7 {[%emt 0:03:30]} 19. f4 {[%emt 0:01:30]} Kh8 {[%emt 0:06:30]} 20. e5 {[%emt 0:07:30]} dxe5 {[%emt 0:02:30]} 21. fxe5 {[%emt 0:00:30]} Ng8 {[%emt 0:04:30]} 22. Qf2 {[%emt 0:09:30]} Qg5 {[%emt 0:08:30]} 23. Bf3 {[%emt 0:05:56]} Ra5 {[%emt 0:08:08]} 24. Bc6 {[%emt 0:04:22]} Rf8 {[%emt 0:00:26]} 25. Rde1 {[%emt 0:07:03]} Ne7 {[%emt 0:10:44]} 26. h4 {[%emt 0:02:22]} Qf5 {[%emt 0:00:34]} 27. Be4 {[%emt 0:01:53]} Qxf2+ {[%emt 0:02:06]} 28. Rxf2 {[%emt 0:00:02]} Bd7 {[%emt 0:04:20]} 29. b4 {[%emt 0:01:13]} axb3 {[%emt 0:00:30]} 30. axb3 {[%emt 0:00:00]} Kg7 {[%emt 0:01:57]} 31. b4 {[%emt 0:00:26]} Ra6 {[%emt 0:00:04]} 32. Nd5 {[%emt 0:01:00]} Nxd5 {[%emt 0:01:14]} 33. Bxd5 {[%emt 0:00:17]} c6 {[%emt 0:00:49]} 34. Bxe6 {[%emt 0:00:28]} Bxe6 {[%emt 0:00:18]} 35. Nc7 {[%emt 0:00:53]} Ra7 {[%emt 0:00:38]} 36. Nxe6+ {[%emt 0:00:38]} fxe6 {[%emt 0:00:03]} 37. Rd1 {[%emt 0:00:16]} Rxf2 {[%emt 0:01:24]} 38. Kxf2 {[%emt 0:00:01]} Ra4 {[%emt 0:00:33]} 39. Rd6 {[%emt 0:00:38]} Rxb4 {[%emt 0:00:01]} 40. Rxc6 {[%emt 0:00:00]} Kf7 {[%emt 0:00:00]} 41. Rc7+ {[%emt 0:04:02]} Kf8 {[%emt 0:02:41]} 42. Ke3 {[%emt 0:05:30]} b5 {[%emt 0:03:30]} 43. cxb5 {[%emt 0:01:30]} Rxb5 {[%emt 0:00:30]} 44. Kd4 {[%emt 0:00:00]} Rd5+ {[%emt 0:03:30]} 45. Ke4 {[%emt 0:00:00]} h6 {[%emt 0:00:00]} 46. Rc8+ {[%emt 0:04:45]} Kf7 {[%emt 0:00:00]} 47. Rc7+ {[%emt 0:02:48]} Kf8 {[%emt 0:00:00]} 48. Rc8+ {[%emt 0:02:49]} Kf7 {[%emt 0:00:00]} 49. Rc2 {[%emt 0:01:26]} Ra5 {[%emt 0:00:30]} 50. Rc7+ {[%emt 0:02:34]} Kf8 {[%emt 0:00:00]} 51. Rc8+ {[%emt 0:00:00]} Kf7 {[%emt 0:00:00]} 52. Rc7+ {[%emt 0:00:28]} Kf8 {[%emt 0:00:30]} 53. Rc8+ {[%emt 0:00:27]} Kf7 {[%emt 0:00:00]} 1/2-1/2

[Event "TUR-chT Superleague 2018"]
[Site "Ankara"]
[Date "2018.07.25"]
[Round "1"]
[White "Selbes, Tarik"]
[Black "Sel, Sedat"]
[Result "1-0"]
[ECO "A05"]
[WhiteElo "2330"]
[BlackElo "1689"]
[Annotator "NA"]
[PlyCount "97"]
[EventDate "2018.07.25"]
[EventType "team-tourn"]
[EventCountry "TUR"]
[SourceTitle "playchess.com"]
[Source "ChessBase"]
[SourceQuality "1"]
[TimeControl "40/5400+30:1800+30"]

1. Nf3 {[%emt 0:00:30]} Nf6 {[%emt 0:01:30]} 2. g3 {[%emt 0:00:00]} g6 {[%emt 0:00:30]} 3. b3 {[%emt 0:00:00]} Bg7 {[%emt 0:00:30]} 4. Bb2 {[%emt 0:00:30]} O-O {[%emt 0:00:30]} 5. Bg2 {[%emt 0:00:00]} c5 {[%emt 0:03:30]} 6. c4 {[%emt 0:00:00]} Nc6 {[%emt 0:00:00]} 7. O-O {[%emt 0:00:30]} d5 {[%emt 0:01:00]} 8. cxd5 {[%emt 0:00:30]} Nxd5 {[%emt 0:00:00]} 9. Bxg7 {[%emt 0:00:00]} Kxg7 {[%emt 0:00:00]} 10. Qc1 {[%emt 0:04:00]} Qd6 {[%emt 0:01:30]} 11. Na3 {[%emt 0:01:30]} b6 {[%emt 0:01:30]} 12. Nb5 {[%emt 0:20:30]} Qf6 {[%emt 0:05:30]} 13. e4 {[%emt 0:01:30]} Ndb4 {[%emt 0:00:30]} 14. a3 {[%emt 0:04:30]} Ba6 {[%emt 0:04:30]} 15. axb4 {[%emt 0:17:30]} Bxb5 {[%emt 0:01:30]} 16. bxc5 {[%emt 0:00:00]} Bxf1 {[%emt 0:00:30]} 17. Kxf1 {[%emt 0:00:00]} Rad8 {[%emt 0:00:30]} 18. cxb6 {[%emt 0:04:30]} axb6 {[%emt 0:00:30]} 19. Ra4 {[%emt 0:00:30]} Rd3 {[%emt 0:00:30]} 20. Rc4 {[%emt 0:14:30]} Rxf3 {[%emt 0:08:30]} 21. Bxf3 {[%emt 0:08:30]} Ne5 {[%emt 0:00:00]} 22. Be2 {[%emt 0:00:30]} Nxc4 {[%emt 0:00:00]} 23. Qxc4 {[%emt 0:03:20]} Rd8 {[%emt 0:01:30]} 24. d3 {[%emt 0:00:46]} Qa1+ {[%emt 0:02:30]} 25. Kg2 {[%emt 0:00:30]} Qe1 {[%emt 0:00:30]} 26. d4 {[%emt 0:00:25]} Ra8 {[%emt 0:00:30]} 27. d5 {[%emt 0:01:00]} Ra2 {[%emt 0:00:30]} 28. Qd4+ {[%emt 0:01:54]} f6 {[%emt 0:11:30]} 29. Bf3 {[%emt 0:11:27]} Rd2 {[%emt 0:00:00]} 30. Qxb6 {[%emt 0:00:13]} Rb2 {[%emt 0:01:00]} 31. Qc5 {[%emt 0:00:52]} Kf7 {[%emt 0:02:30]} 32. d6 {[%emt 0:04:37]} exd6 {[%emt 0:00:30]} 33. Qa7+ {[%emt 0:00:04]} Ke6 {[%emt 0:03:30]} 34. Bg4+ {[%emt 0:00:09]} f5 {[%emt 0:02:30]} 35. exf5+ {[%emt 0:00:02]} gxf5 {[%emt 0:02:30]} 36. Bxf5+ {[%emt 0:00:10]} Kf6 {[%emt 0:18:30]} 37. Bd3 {[%emt 0:01:05]} Qe5 {[%emt 0:07:30]} 38. Qxh7 {[%emt 0:00:40]} d5 {[%emt 0:02:34]} 39. h4 {[%emt 0:01:29]} Rxb3 {[%emt 0:02:29]} 40. h5 {[%emt 0:00:00]} Qg5 {[%emt 0:00:00]} 41. Bg6 {[%emt 0:06:47]} Ke6 {[%emt 0:19:57]} 42. Qf7+ {[%emt 0:07:54]} Kd6 {[%emt 0:00:30]} 43. Qa7 {[%emt 0:12:19]} Qd8 {[%emt 0:08:10]} 44. Qd4 {[%emt 0:01:54]} Qf8 {[%emt 0:01:19]} 45. f4 {[%emt 0:00:37]} Qe7 {[%emt 0:00:22]} 46. Kh3 {[%emt 0:01:15]} Qe3 {[%emt 0:04:37]} 47. Qxe3 {[%emt 0:00:41]} Rxe3 {[%emt 0:00:35]} 48. h6 {[%emt 0:00:19]} Re6 {[%emt 0:00:15]} 49. h7 {[%emt 0:00:14]} 1-0

[Event "TUR-chT Superleague 2018"]
[Site "Ankara"]
[Date "2018.07.25"]
[Round "1"]
[White "Ozen, Bahadir"]
[Black "Gulden, Egemen"]
[Result "1-0"]
[ECO "B51"]
[WhiteElo "2317"]
[BlackElo "2085"]
[Annotator "NA"]
[PlyCount "93"]
[EventDate "2018.07.25"]
[EventType "team-tourn"]
[EventCountry "TUR"]
[SourceTitle "playchess.com"]
[Source "ChessBase"]
[SourceQuality "1"]
[TimeControl "40/5400+30:1800+30"]

1. e4 {[%emt 0:00:30]} c5 {[%emt 0:00:30]} 2. Nf3 {[%emt 0:00:30]} d6 {[%emt 0:00:30]} 3. Bb5+ {[%emt 0:00:00]} Nd7 {[%emt 0:00:30]} 4. O-O {[%emt 0:01:00]} a6 {[%emt 0:02:30]} 5. Bxd7+ {[%emt 0:03:30]} Bxd7 {[%emt 0:00:30]} 6. d4 {[%emt 0:00:30]} cxd4 {[%emt 0:01:30]} 7. Qxd4 {[%emt 0:00:30]} e5 {[%emt 0:03:30]} 8. Qd3 {[%emt 0:01:30]} b5 {[%emt 0:04:30]} 9. Rd1 {[%emt 0:03:30]} Be6 {[%emt 0:09:30]} 10. Nc3 {[%emt 0:07:30]} Bc4 {[%emt 0:10:30]} 11. Qe3 {[%emt 0:03:30]} Qc7 {[%emt 0:01:30]} 12. b3 {[%emt 0:13:30]} Be6 {[%emt 0:00:00]} 13. Ba3 {[%emt 0:00:30]} Nf6 {[%emt 0:04:00]} 14. Bb4 {[%emt 0:05:30]} Rb8 {[%emt 0:05:30]} 15. Qd3 {[%emt 0:05:30]} Nd7 {[%emt 0:18:30]} 16. Nd5 {[%emt 0:01:30]} Qc6 {[%emt 0:07:30]} 17. a4 {[%emt 0:00:00]} Bxd5 {[%emt 0:06:30]} 18. exd5 {[%emt 0:02:00]} Qb6 {[%emt 0:02:19]} 19. axb5 {[%emt 0:00:30]} axb5 {[%emt 0:15:25]} 20. Qc3 {[%emt 0:02:30]} Be7 {[%emt 0:03:11]} 21. Qc6 {[%emt 0:00:30]} Qd8 {[%emt 0:01:22]} 22. Bxd6 {[%emt 0:00:30]} Rb6 {[%emt 0:00:33]} 23. Ra8 {[%emt 0:01:30]} Bxd6 {[%emt 0:00:46]} 24. Rxd8+ {[%emt 0:00:30]} Kxd8 {[%emt 0:00:00]} 25. Qc3 {[%emt 0:00:30]} Ke7 {[%emt 0:00:54]} 26. Ra1 {[%emt 0:00:00]} Rhb8 {[%emt 0:00:13]} 27. Qd3 {[%emt 0:02:00]} g6 {[%emt 0:00:34]} 28. Ng5 {[%emt 0:00:30]} h6 {[%emt 0:00:52]} 29. Ne4 {[%emt 0:00:30]} f5 {[%emt 0:00:19]} 30. Nxd6 {[%emt 0:00:30]} Rxd6 {[%emt 0:00:05]} 31. c4 {[%emt 0:00:30]} bxc4 {[%emt 0:00:30]} 32. bxc4 {[%emt 0:00:00]} Rc8 {[%emt 0:00:55]} 33. Ra7 {[%emt 0:01:00]} Kf6 {[%emt 0:00:30]} 34. Qa3 {[%emt 0:00:30]} Nc5 {[%emt 0:00:30]} 35. Qb4 {[%emt 0:00:30]} Kg5 {[%emt 0:00:29]} 36. h4+ {[%emt 0:01:30]} Kxh4 {[%emt 0:00:29]} 37. Ra5 {[%emt 0:00:30]} Ne4 {[%emt 0:00:45]} 38. f3 {[%emt 0:00:30]} Ng3 {[%emt 0:00:18]} 39. Qxd6 {[%emt 0:02:30]} Rxc4 {[%emt 0:00:22]} 40. Qf6+ {[%emt 0:00:00]} g5 {[%emt 0:00:00]} 41. Qxh6+ {[%emt 0:01:00]} Nh5 {[%emt 0:00:39]} 42. Kh2 {[%emt 0:00:30]} Rc2 {[%emt 0:00:30]} 43. Ra4+ {[%emt 0:00:30]} e4 {[%emt 0:00:30]} 44. fxe4 {[%emt 0:00:30]} g4 {[%emt 0:00:30]} 45. Qc6 {[%emt 0:03:30]} Rf2 {[%emt 0:03:30]} 46. exf5 {[%emt 0:01:30]} Rxf5 {[%emt 0:00:30]} 47. Qg6 {[%emt 0:00:30]} 1-0

[Event "TUR-chT Superleague 2018"]
[Site "Ankara"]
[Date "2018.07.25"]
[Round "1"]
[White "Ozenir, Ekin Baris"]
[Black "Yilmaz, Goktan"]
[Result "1/2-1/2"]
[ECO "D36"]
[WhiteElo "2300"]
[BlackElo "2233"]
[Annotator "NA"]
[PlyCount "100"]
[EventDate "2018.07.25"]
[EventType "team-tourn"]
[EventCountry "TUR"]
[SourceTitle "playchess.com"]
[Source "ChessBase"]
[SourceQuality "1"]
[TimeControl "40/5400+30:1800+30"]

1. d4 {[%emt 0:00:30]} d5 {[%emt 0:00:30]} 2. c4 {[%emt 0:00:30]} e6 {[%emt 0:00:30]} 3. Nc3 {[%emt 0:00:30]} Nf6 {[%emt 0:00:00]} 4. cxd5 {[%emt 0:01:30]} exd5 {[%emt 0:00:00]} 5. Bg5 {[%emt 0:00:30]} Be7 {[%emt 0:00:30]} 6. e3 {[%emt 0:00:30]} c6 {[%emt 0:00:30]} 7. Bd3 {[%emt 0:00:30]} Nbd7 {[%emt 0:00:30]} 8. Nge2 {[%emt 0:03:30]} Nh5 {[%emt 0:09:30]} 9. Bxe7 {[%emt 0:03:30]} Qxe7 {[%emt 0:00:30]} 10. O-O {[%emt 0:01:30]} O-O {[%emt 0:04:30]} 11. Qc2 {[%emt 0:04:30]} g6 {[%emt 0:00:30]} 12. Rae1 {[%emt 0:08:30]} Ndf6 {[%emt 0:11:30]} 13. Nc1 {[%emt 0:08:30]} Ng7 {[%emt 0:00:30]} 14. f3 {[%emt 0:07:30]} Be6 {[%emt 0:08:30]} 15. Nb3 {[%emt 0:08:30]} b6 {[%emt 0:02:30]} 16. e4 {[%emt 0:07:30]} Rac8 {[%emt 0:05:30]} 17. Qf2 {[%emt 0:11:30]} Rfd8 {[%emt 0:03:30]} 18. e5 {[%emt 0:05:30]} Nd7 {[%emt 0:02:30]} 19. f4 {[%emt 0:01:30]} Nb8 {[%emt 0:10:30]} 20. Rc1 {[%emt 0:03:41]} h5 {[%emt 0:02:30]} 21. Nd1 {[%emt 0:02:40]} Bf5 {[%emt 0:11:30]} 22. Be2 {[%emt 0:02:20]} a5 {[%emt 0:01:30]} 23. Nd2 {[%emt 0:08:37]} Nd7 {[%emt 0:03:30]} 24. Ne3 {[%emt 0:02:07]} Qb4 {[%emt 0:00:47]} 25. Ba6 {[%emt 0:01:21]} Rb8 {[%emt 0:06:02]} 26. Nf3 {[%emt 0:02:30]} Be4 {[%emt 0:04:26]} 27. Rxc6 {[%emt 0:02:00]} Nf8 {[%emt 0:00:34]} 28. Rcc1 {[%emt 0:01:41]} Nfe6 {[%emt 0:02:21]} 29. a3 {[%emt 0:00:25]} Qa4 {[%emt 0:00:46]} 30. Be2 {[%emt 0:00:33]} Nxf4 {[%emt 0:07:19]} 31. Bd1 {[%emt 0:00:23]} Qd7 {[%emt 0:00:00]} 32. Qg3 {[%emt 0:00:39]} Nfe6 {[%emt 0:01:04]} 33. Ng5 {[%emt 0:00:29]} Nxg5 {[%emt 0:00:52]} 34. Qxg5 {[%emt 0:00:02]} Ne6 {[%emt 0:00:22]} 35. Qg3 {[%emt 0:00:42]} Nxd4 {[%emt 0:01:11]} 36. Bxh5 {[%emt 0:00:22]} Kg7 {[%emt 0:00:03]} 37. Rcd1 {[%emt 0:00:31]} Nf5 {[%emt 0:00:32]} 38. Nxf5+ {[%emt 0:00:51]} Bxf5 {[%emt 0:00:01]} 39. Rd4 {[%emt 0:00:28]} Qe6 {[%emt 0:01:04]} 40. Bf3 {[%emt 0:00:00]} Rbc8 {[%emt 0:00:00]} 41. Rfd1 {[%emt 0:07:38]} Rc5 {[%emt 0:05:36]} 42. Qg5 {[%emt 0:15:37]} Re8 {[%emt 0:15:30]} 43. Rxd5 {[%emt 0:02:31]} Rxd5 {[%emt 0:00:56]} 44. Rxd5 {[%emt 0:00:06]} Qc6 {[%emt 0:00:32]} 45. Qd2 {[%emt 0:03:39]} Be6 {[%emt 0:03:25]} 46. Rd3 {[%emt 0:03:08]} Qb5 {[%emt 0:02:44]} 47. Re3 {[%emt 0:00:52]} Rc8 {[%emt 0:00:01]} 48. h3 {[%emt 0:00:47]} Qa4 {[%emt 0:04:30]} 49. Rc3 {[%emt 0:00:42]} Rxc3 {[%emt 0:01:32]} 50. Qxc3 {[%emt 0:00:01]} Qf4 {[%emt 0:00:05]} 1/2-1/2

[Event "TUR-chT Superleague 2018"]
[Site "Ankara"]
[Date "2018.07.25"]
[Round "1"]
[White "Keler, Faruk"]
[Black "Apaydin, Fethi"]
[Result "0-1"]
[ECO "E68"]
[WhiteElo "2286"]
[BlackElo "2353"]
[Annotator "NA"]
[PlyCount "124"]
[EventDate "2018.07.25"]
[EventType "team-tourn"]
[EventCountry "TUR"]
[SourceTitle "playchess.com"]
[Source "ChessBase"]
[SourceQuality "1"]
[TimeControl "40/5400+30:1800+30"]

1. d4 {[%emt 0:00:30]} Nf6 {[%emt 0:00:30]} 2. Nf3 {[%emt 0:00:30]} g6 {[%emt 0:00:00]} 3. g3 {[%emt 0:00:00]} Bg7 {[%emt 0:00:00]} 4. Bg2 {[%emt 0:00:00]} O-O {[%emt 0:00:30]} 5. O-O {[%emt 0:00:30]} d6 {[%emt 0:00:30]} 6. b3 {[%emt 0:00:00]} Nbd7 {[%emt 0:00:30]} 7. Bb2 {[%emt 0:03:00]} Re8 {[%emt 0:02:30]} 8. c4 {[%emt 0:03:30]} c6 {[%emt 0:00:30]} 9. Nc3 {[%emt 0:05:30]} e5 {[%emt 0:00:30]} 10. e4 {[%emt 0:04:30]} exd4 {[%emt 0:01:30]} 11. Nxd4 {[%emt 0:00:30]} Nc5 {[%emt 0:01:30]} 12. Qc2 {[%emt 0:10:30]} a5 {[%emt 0:06:30]} 13. Rad1 {[%emt 0:02:30]} Qb6 {[%emt 0:01:30]} 14. Nde2 {[%emt 0:02:30]} a4 {[%emt 0:17:30]} 15. Nxa4 {[%emt 0:07:30]} Nxa4 {[%emt 0:03:30]} 16. bxa4 {[%emt 0:00:30]} Qb4 {[%emt 0:06:30]} 17. Nc3 {[%emt 0:14:30]} Be6 {[%emt 0:01:30]} 18. Qb3 {[%emt 0:02:30]} Qxc4 {[%emt 0:05:30]} 19. Qxc4 {[%emt 0:06:30]} Bxc4 {[%emt 0:00:30]} 20. Rfe1 {[%emt 0:00:00]} d5 {[%emt 0:12:30]} 21. exd5 {[%emt 0:01:00]} Rxe1+ {[%emt 0:02:30]} 22. Rxe1 {[%emt 0:02:30]} Nxd5 {[%emt 0:02:30]} 23. Nxd5 {[%emt 0:02:30]} cxd5 {[%emt 0:02:30]} 24. Bxg7 {[%emt 0:04:30]} Kxg7 {[%emt 0:00:00]} 25. Rd1 {[%emt 0:02:30]} Ra5 {[%emt 0:02:00]} 26. Rd2 {[%emt 0:02:30]} Kf6 {[%emt 0:00:30]} 27. f4 {[%emt 0:00:00]} h5 {[%emt 0:08:30]} 28. Rb2 {[%emt 0:03:00]} Rxa4 {[%emt 0:01:30]} 29. Rb6+ {[%emt 0:00:30]} Kg7 {[%emt 0:00:30]} 30. Rxb7 {[%emt 0:00:47]} Rxa2 {[%emt 0:00:30]} 31. Bh3 {[%emt 0:05:52]} Re2 {[%emt 0:03:28]} 32. Rb1 {[%emt 0:02:42]} Bd3 {[%emt 0:03:46]} 33. Rb7 {[%emt 0:01:19]} Bc4 {[%emt 0:08:06]} 34. Rb1 {[%emt 0:00:03]} Rd2 {[%emt 0:00:39]} 35. Rb4 {[%emt 0:02:00]} Rd1+ {[%emt 0:01:58]} 36. Kf2 {[%emt 0:00:30]} Rd2+ {[%emt 0:00:30]} 37. Kg1 {[%emt 0:00:00]} Ba2 {[%emt 0:00:00]} 38. Bf1 {[%emt 0:04:11]} Kf6 {[%emt 0:00:09]} 39. Bh3 {[%emt 0:06:11]} d4 {[%emt 0:01:59]} 40. Rb6+ {[%emt 0:00:00]} Ke7 {[%emt 0:00:00]} 41. f5 {[%emt 0:15:51]} gxf5 {[%emt 0:06:55]} 42. Bxf5 {[%emt 0:00:02]} Bd5 {[%emt 0:00:30]} 43. Bh3 {[%emt 0:01:54]} Rd1+ {[%emt 0:02:30]} 44. Kf2 {[%emt 0:00:59]} Rh1 {[%emt 0:00:30]} 45. Bf1 {[%emt 0:03:14]} Rxh2+ {[%emt 0:00:30]} 46. Ke1 {[%emt 0:00:04]} h4 {[%emt 0:08:48]} 47. gxh4 {[%emt 0:01:20]} Rxh4 {[%emt 0:00:28]} 48. Kd2 {[%emt 0:00:30]} Be4 {[%emt 0:01:17]} 49. Rb4 {[%emt 0:00:25]} Bg6 {[%emt 0:00:09]} 50. Be2 {[%emt 0:01:36]} Kd6 {[%emt 0:01:24]} 51. Ra4 {[%emt 0:01:10]} Ke5 {[%emt 0:02:11]} 52. Ra5+ {[%emt 0:00:38]} Kf4 {[%emt 0:00:19]} 53. Ra4 {[%emt 0:00:51]} Kg3 {[%emt 0:01:09]} 54. Ra3+ {[%emt 0:00:14]} d3 {[%emt 0:02:50]} 55. Bd1 {[%emt 0:03:23]} Kf2 {[%emt 0:01:38]} 56. Ra6 {[%emt 0:00:18]} Rf4 {[%emt 0:00:37]} 57. Rd6 {[%emt 0:00:22]} Be4 {[%emt 0:03:00]} 58. Bb3 {[%emt 0:00:56]} f5 {[%emt 0:00:17]} 59. Bc4 {[%emt 0:01:30]} Rf3 {[%emt 0:00:49]} 60. Bb3 {[%emt 0:03:26]} Re3 {[%emt 0:00:55]} 61. Bd1 {[%emt 0:00:30]} Re2+ {[%emt 0:00:30]} 62. Kc1 {[%emt 0:00:30]} Ke3 {[%emt 0:00:16]} 0-1

[Event "TUR-chT Superleague 2018"]
[Site "Ankara"]
[Date "2018.07.25"]
[Round "1"]
[White "Tasdogen, Dincer"]
[Black "Kilic, Gokturk Kagan"]
[Result "1-0"]
[ECO "B42"]
[WhiteElo "2280"]
[BlackElo "1931"]
[Annotator "NA"]
[PlyCount "91"]
[EventDate "2018.07.25"]
[EventType "team-tourn"]
[EventCountry "TUR"]
[SourceTitle "playchess.com"]
[Source "ChessBase"]
[SourceQuality "1"]
[TimeControl "40/5400+30:1800+30"]

1. e4 {[%emt 0:00:30]} c5 {[%emt 0:00:30]} 2. Nf3 {[%emt 0:00:00]} e6 {[%emt 0:00:30]} 3. d4 {[%emt 0:00:00]} cxd4 {[%emt 0:00:30]} 4. Nxd4 {[%emt 0:00:00]} a6 {[%emt 0:01:30]} 5. Bd3 {[%emt 0:00:00]} Nf6 {[%emt 0:01:30]} 6. O-O {[%emt 0:00:30]} Qc7 {[%emt 0:01:30]} 7. Qe2 {[%emt 0:01:30]} Nc6 {[%emt 0:03:30]} 8. Nxc6 {[%emt 0:01:30]} dxc6 {[%emt 0:03:30]} 9. e5 {[%emt 0:05:30]} Nd7 {[%emt 0:15:30]} 10. Bf4 {[%emt 0:01:30]} Be7 {[%emt 0:09:30]} 11. Re1 {[%emt 0:04:30]} b5 {[%emt 0:22:30]} 12. Nd2 {[%emt 0:17:30]} Nc5 {[%emt 0:14:30]} 13. Ne4 {[%emt 0:04:30]} Nxe4 {[%emt 0:05:25]} 14. Bxe4 {[%emt 0:00:30]} Bb7 {[%emt 0:00:50]} 15. a4 {[%emt 0:02:30]} Rb8 {[%emt 0:03:49]} 16. Qf3 {[%emt 0:09:30]} b4 {[%emt 0:10:54]} 17. Rad1 {[%emt 0:14:30]} c5 {[%emt 0:00:51]} 18. Bxb7 {[%emt 0:09:30]} Qxb7 {[%emt 0:00:30]} 19. Qg4 {[%emt 0:00:30]} g6 {[%emt 0:01:27]} 20. Bg5 {[%emt 0:00:30]} Bxg5 {[%emt 0:00:40]} 21. Qxg5 {[%emt 0:00:00]} O-O {[%emt 0:00:26]} 22. Qf6 {[%emt 0:01:00]} Rfe8 {[%emt 0:00:30]} 23. Rd6 {[%emt 0:00:30]} a5 {[%emt 0:00:30]} 24. h4 {[%emt 0:04:30]} Qe7 {[%emt 0:00:34]} 25. Qxe7 {[%emt 0:01:30]} Rxe7 {[%emt 0:00:30]} 26. Ra6 {[%emt 0:00:00]} Rd7 {[%emt 0:00:30]} 27. Rxa5 {[%emt 0:01:00]} Rd2 {[%emt 0:00:59]} 28. Rxc5 {[%emt 0:00:30]} b3 {[%emt 0:00:00]} 29. Rc1 {[%emt 0:01:27]} bxc2 {[%emt 0:00:32]} 30. R5xc2 {[%emt 0:00:30]} Rxb2 {[%emt 0:00:30]} 31. Rxd2 {[%emt 0:00:30]} Rxd2 {[%emt 0:00:30]} 32. Ra1 {[%emt 0:00:30]} Rd8 {[%emt 0:00:30]} 33. a5 {[%emt 0:02:14]} Ra8 {[%emt 0:00:30]} 34. a6 {[%emt 0:02:47]} Ra7 {[%emt 0:00:18]} 35. Kf1 {[%emt 0:01:18]} Kf8 {[%emt 0:00:32]} 36. Ke2 {[%emt 0:01:03]} Ke7 {[%emt 0:00:30]} 37. Kd3 {[%emt 0:00:00]} Kd7 {[%emt 0:00:33]} 38. Kc4 {[%emt 0:00:00]} Kc6 {[%emt 0:00:30]} 39. Rd1 {[%emt 0:00:00]} Rxa6 {[%emt 0:00:44]} 40. Rd6+ {[%emt 0:00:00]} Kb7 {[%emt 0:00:29]} 41. Rxa6 {[%emt 0:01:11]} Kxa6 {[%emt 0:30:30]} 42. Kc5 {[%emt 0:00:00]} Ka5 {[%emt 0:00:00]} 43. Kd6 {[%emt 0:00:00]} Kb6 {[%emt 0:00:00]} 44. Ke7 {[%emt 0:00:30]} Kc6 {[%emt 0:00:00]} 45. Kxf7 {[%emt 0:00:30]} Kd5 {[%emt 0:00:00]} 46. f4 {[%emt 0:00:00]} 1-0